[Event "ROC Nova College 2019"]
[Site "Haarlem"]
[Date "2019.06.29"]
[Round "2.3"]
[White "Schelvis, Richard"]
[Black "Admiraal, Miguoel"]
[Result "0-1"]
[ECO "A43"]
[WhiteElo "2113"]
[BlackElo "2507"]
[Annotator "RC"]
[PlyCount "82"]
[EventDate "2019.06.28"]
[EventType "swiss"]
[EventCountry "NED"]
[SourceTitle "playchess.com"]
[Source "ChessBase"]
[SourceQuality "1"]
[TimeControl "5400+15"]

1. d4 {[%emt 0:00:00]} c5 {[%emt 0:00:00]} 2. Nf3 {[%emt 0:01:27]} cxd4 {[%emt 0:00:03]} 3. Nxd4 {[%emt 0:00:12]} b6 {[%emt 0:01:02]} 4. g3 {[%emt 0:04:19]} Bb7 {[%emt 0:00:15]} 5. Nf3 {[%emt 0:00:04]} g6 {[%emt 0:10:11]} 6. Bg2 {[%emt 0:01:07]} Bg7 {[%emt 0:04:15]} 7. O-O {[%emt 0:00:18]} Nf6 {[%emt 0:00:30]} 8. c3 {[%emt 0:05:13]} O-O {[%emt 0:02:04]} 9. a4 {[%emt 0:02:47]} Nc6 {[%emt 0:05:13]} 10. Nd4 {[%emt 0:05:11]} Qc8 {[%emt 0:07:57]} 11. Nxc6 {[%emt 0:06:04]} Bxc6 {[%emt 0:00:14]} 12. Nd2 {[%emt 0:00:42]} Bxg2 {[%emt 0:05:52]} 13. Kxg2 {[%emt 0:07:09]} Qc6+ {[%emt 0:01:51]} 14. Kg1 {[%emt 0:00:42]} d5 {[%emt 0:04:32]} 15. Nf3 {[%emt 0:02:22]} Ne4 {[%emt 0:03:02]} 16. Bf4 {[%emt 0:04:53]} Rfe8 {[%emt 0:00:51]} 17. Ne5 {[%emt 0:17:17]} Qb7 {[%emt 0:02:26]} 18. h4 {[%emt 0:02:55]} Rad8 {[%emt 0:05:00]} 19. Qc1 {[%emt 0:04:07]} Nc5 {[%emt 0:05:49]} 20. Qe3 {[%emt 0:01:55]} f6 {[%emt 0:04:12]} 21. Nd3 {[%emt 0:01:30]} e5 {[%emt 0:01:49]} 22. Nxc5 {[%emt 0:00:23]} bxc5 {[%emt 0:00:14]} 23. Bh6 {[%emt 0:00:09]} d4 {[%emt 0:02:38]} 24. Qc1 {[%emt 0:04:13]} Qd5 {[%emt 0:07:40]} 25. Bxg7 {[%emt 0:00:27]} Kxg7 {[%emt 0:00:05]} 26. Qd2 {[%emt 0:01:43]} e4 {[%emt 0:07:16]} 27. cxd4 {[%emt 0:04:18]} cxd4 {[%emt 0:00:31]} 28. Qf4 {[%emt 0:01:13]} Rd7 {[%emt 0:00:32]} 29. Rac1 {[%emt 0:00:53]} Re5 {[%emt 0:03:43]} 30. b4 {[%emt 0:01:24]} Qe6 {[%emt 0:01:51]} 31. b5 {[%emt 0:00:17]} g5 {[%emt 0:00:30]} 32. hxg5 {[%emt 0:00:51]} fxg5 {[%emt 0:00:10]} 33. Qd2 {[%emt 0:00:06]} e3 {[%emt 0:00:31]} 34. Qd3 {[%emt 0:03:07]} Qh3 {[%emt 0:01:56]} 35. Qc4 {[%emt 0:07:08]} exf2+ {[%emt 0:00:37]} 36. Rxf2 {[%emt 0:00:08]} Qxg3+ {[%emt 0:00:28]} 37. Kf1 {[%emt 0:00:41]} Qh3+ {[%emt 0:00:16]} 38. Kg1 {[%emt 0:01:03]} Re3 {[%emt 0:01:28]} 39. Qc6 {[%emt 0:00:37]} Rg3+ {[%emt 0:00:08]} 40. Rg2 {[%emt 0:00:02]} Rxg2+ {[%emt 0:00:02]} 41. Qxg2 {[%emt 0:00:02]} Qe3+ {[%emt 0:00:01]} 0-1

[Event "ROC Nova College 2019"]
[Site "Haarlem"]
[Date "2019.06.29"]
[Round "3.2"]
[White "Kevlishvili, Robby"]
[Black "Sumets, Andrey"]
[Result "1-0"]
[ECO "C10"]
[WhiteElo "2473"]
[BlackElo "2577"]
[Annotator "RC"]
[PlyCount "171"]
[EventDate "2019.06.28"]
[EventType "swiss"]
[EventCountry "NED"]
[SourceTitle "playchess.com"]
[Source "ChessBase"]
[SourceQuality "1"]
[TimeControl "5400+15"]

1. e4 {[%emt 0:00:00]} e6 {[%emt 0:00:00]} 2. d4 {[%emt 0:00:00]} d5 {[%emt 0:00:00]} 3. Nc3 {[%emt 0:00:19]} dxe4 {[%emt 0:00:26]} 4. Nxe4 {[%emt 0:00:05]} Nd7 {[%emt 0:00:03]} 5. Nf3 {[%emt 0:00:25]} Ngf6 {[%emt 0:00:04]} 6. Nxf6+ {[%emt 0:00:11]} Nxf6 {[%emt 0:00:05]} 7. Be3 {[%emt 0:00:09]} Bd6 {[%emt 0:03:14]} 8. Bd3 {[%emt 0:00:35]} O-O {[%emt 0:01:49]} 9. Qe2 {[%emt 0:00:44]} b6 {[%emt 0:00:46]} 10. O-O-O {[%emt 0:01:22]} Bb7 {[%emt 0:00:04]} 11. h4 {[%emt 0:00:21]} Qe7 {[%emt 0:05:30]} 12. Kb1 {[%emt 0:04:26]} c5 {[%emt 0:09:26]} 13. Rhg1 {[%emt 0:04:29]} Rac8 {[%emt 0:08:59]} 14. Bg5 {[%emt 0:08:16]} cxd4 {[%emt 0:18:06]} 15. Nxd4 {[%emt 0:00:16]} Rfd8 {[%emt 0:00:37]} 16. g4 {[%emt 0:11:32]} Rd7 {[%emt 0:07:18]} 17. Nf3 {[%emt 0:03:43]} Rcd8 {[%emt 0:02:57]} 18. h5 {[%emt 0:02:47]} Bc7 {[%emt 0:15:51]} 19. Rde1 {[%emt 0:07:13]} h6 {[%emt 0:12:07]} 20. Bc1 {[%emt 0:03:25]} Nd5 {[%emt 0:01:19]} 21. Bb5 {[%emt 0:02:46]} Nf4 {[%emt 0:04:00]} 22. Bxf4 {[%emt 0:00:15]} Bxf4 {[%emt 0:00:03]} 23. Bxd7 {[%emt 0:00:08]} Rxd7 {[%emt 0:00:02]} 24. Rd1 {[%emt 0:00:25]} Rc7 {[%emt 0:00:04]} 25. Rge1 {[%emt 0:07:04]} Rc5 {[%emt 0:01:53]} 26. Nd2 {[%emt 0:05:13]} Re5 {[%emt 0:00:32]} 27. Qf1 {[%emt 0:00:52]} Rd5 {[%emt 0:00:18]} 28. Nb3 {[%emt 0:03:01]} Rxd1+ {[%emt 0:00:18]} 29. Rxd1 {[%emt 0:00:11]} Bf3 {[%emt 0:00:02]} 30. Rd3 {[%emt 0:03:11]} Bxg4 {[%emt 0:00:05]} 31. Qg2 {[%emt 0:00:27]} Qg5 {[%emt 0:00:57]} 32. a4 {[%emt 0:07:54]} Bxh5 {[%emt 0:00:01]} 33. Qa8+ {[%emt 0:01:33]} Kh7 {[%emt 0:00:01]} 34. Qxa7 {[%emt 0:00:21]} Qg1+ {[%emt 0:00:04]} 35. Ka2 {[%emt 0:00:07]} Bg6 {[%emt 0:00:15]} 36. Rc3 {[%emt 0:00:09]} Qxf2 {[%emt 0:00:41]} 37. a5 {[%emt 0:09:19]} Be5 {[%emt 0:00:01]} 38. Qxb6 {[%emt 0:00:09]} Qxb6 {[%emt 0:00:02]} 39. axb6 {[%emt 0:00:05]} Bxc3 {[%emt 0:00:02]} 40. bxc3 {[%emt 0:00:06]} Be4 {[%emt 0:00:02]} 41. Nc5 {[%emt 0:00:06]} Bc6 {[%emt 0:00:02]} 42. b7 {[%emt 0:00:12]} Bxb7 {[%emt 0:00:03]} 43. Nxb7 {[%emt 0:00:08]} h5 {[%emt 0:00:38]} 44. c4 {[%emt 0:00:03]} h4 {[%emt 0:01:01]} 45. c5 {[%emt 0:00:03]} h3 {[%emt 0:00:01]} 46. c6 {[%emt 0:00:09]} h2 {[%emt 0:00:03]} 47. c7 {[%emt 0:00:02]} h1=Q {[%emt 0:00:04]} 48. c8=Q {[%emt 0:07:43]} g5 {[%emt 0:00:30]} 49. Qc7 {[%emt 0:00:00]} Qf3 {[%emt 0:00:50]} 50. Nd6 {[%emt 0:00:00]} Kg6 {[%emt 0:00:05]} 51. Qd8 {[%emt 0:00:00]} Qd5+ {[%emt 0:00:43]} 52. c4 {[%emt 0:00:00]} Qd2+ {[%emt 0:00:01]} 53. Kb3 {[%emt 0:00:00]} Qd3+ {[%emt 0:00:36]} 54. Kb4 {[%emt 0:00:00]} Qd2+ {[%emt 0:00:07]} 55. Kb5 {[%emt 0:00:00]} Qb2+ {[%emt 0:00:08]} 56. Kc6 {[%emt 0:00:00]} g4 {[%emt 0:00:13]} 57. c5 {[%emt 0:00:00]} g3 {[%emt 0:00:10]} 58. Ne4 {[%emt 0:00:00]} g2 {[%emt 0:00:42]} 59. Qg5+ {[%emt 0:00:00]} Kh7 {[%emt 0:00:02]} 60. Nf6+ {[%emt 0:00:00]} Qxf6 {[%emt 0:00:01]} 61. Qxf6 {[%emt 0:00:00]} g1=Q {[%emt 0:00:02]} 62. Qxf7+ {[%emt 0:00:00]} Kh8 {[%emt 0:00:09]} 63. Qxe6 {[%emt 0:00:00]} Qg6 {[%emt 0:00:45]} 64. Kd6 {[%emt 0:00:00]} Qd3+ {[%emt 0:00:21]} 65. Kc7 {[%emt 0:00:00]} Qh7+ {[%emt 0:00:13]} 66. Kc8 {[%emt 0:00:00]} Qc2 {[%emt 0:00:27]} 67. c6 {[%emt 0:00:00]} Qa4 {[%emt 0:00:15]} 68. Qe5+ {[%emt 0:01:10]} Kg8 {[%emt 0:00:07]} 69. c7 {[%emt 0:00:09]} Qc6 {[%emt 0:00:28]} 70. Kd8 {[%emt 0:00:27]} Qb6 {[%emt 0:00:01]} 71. Qd5+ {[%emt 0:00:52]} Kh8 {[%emt 0:00:05]} 72. Kd7 {[%emt 0:00:11]} Qa7 {[%emt 0:00:04]} 73. Qc4 {[%emt 0:01:30]} Kg7 {[%emt 0:00:25]} 74. Qg4+ {[%emt 0:00:19]} Kh8 {[%emt 0:00:13]} 75. Qh4+ {[%emt 0:00:17]} Kg7 {[%emt 0:00:12]} 76. Qe7+ {[%emt 0:00:07]} Kh8 {[%emt 0:00:13]} 77. Qf6+ {[%emt 0:00:46]} Kh7 {[%emt 0:00:16]} 78. Kd8 {[%emt 0:00:18]} Qa5 {[%emt 0:00:08]} 79. Qf7+ {[%emt 0:00:48]} Kh8 {[%emt 0:00:16]} 80. Qf8+ {[%emt 0:00:14]} Kh7 {[%emt 0:00:04]} 81. Qf6 {[%emt 0:00:11]} Qd5+ {[%emt 0:01:05]} 82. Ke8 {[%emt 0:00:08]} Qg8+ {[%emt 0:00:18]} 83. Ke7 {[%emt 0:00:33]} Qg4 {[%emt 0:00:17]} 84. Qf7+ {[%emt 0:00:06]} Kh8 {[%emt 0:00:03]} 85. Qe8+ {[%emt 0:00:23]} Kh7 {[%emt 0:00:02]} 86. c8=Q {[%emt 0:00:12]} 1-0

[Event "ROC Nova College 2019"]
[Site "Haarlem"]
[Date "2019.06.29"]
[Round "3.3"]
[White "Admiraal, Miguoel"]
[Black "Zwirs, Nico"]
[Result "1/2-1/2"]
[ECO "B52"]
[WhiteElo "2507"]
[BlackElo "2387"]
[Annotator "RC"]
[PlyCount "64"]
[EventDate "2019.06.28"]
[EventType "swiss"]
[EventCountry "NED"]
[SourceTitle "playchess.com"]
[Source "ChessBase"]
[SourceQuality "1"]
[TimeControl "5400+15"]

1. e4 {[%emt 0:00:28]} c5 {[%emt 0:01:09]} 2. Nf3 {[%emt 0:00:21]} d6 {[%emt 0:00:08]} 3. Bb5+ {[%emt 0:00:34]} Bd7 {[%emt 0:00:06]} 4. Bxd7+ {[%emt 0:00:24]} Qxd7 {[%emt 0:00:11]} 5. c4 {[%emt 0:00:11]} e5 {[%emt 0:00:32]} 6. Nc3 {[%emt 0:01:17]} Ne7 {[%emt 0:03:09]} 7. d3 {[%emt 0:01:17]} g6 {[%emt 0:00:24]} 8. Bg5 {[%emt 0:01:21]} Bg7 {[%emt 0:01:07]} 9. Bxe7 {[%emt 0:02:00]} Qxe7 {[%emt 0:00:09]} 10. Nd5 {[%emt 0:00:09]} Qd7 {[%emt 0:00:15]} 11. a3 {[%emt 0:01:37]} O-O {[%emt 0:03:15]} 12. b4 {[%emt 0:00:57]} f5 {[%emt 0:01:50]} 13. bxc5 {[%emt 0:04:13]} dxc5 {[%emt 0:00:31]} 14. O-O {[%emt 0:00:38]} Nc6 {[%emt 0:01:26]} 15. Re1 {[%emt 0:08:44]} Rae8 {[%emt 0:04:22]} 16. Rb1 {[%emt 0:02:17]} Kh8 {[%emt 0:01:33]} 17. h3 {[%emt 0:11:17]} b6 {[%emt 0:04:28]} 18. Nd2 {[%emt 0:12:05]} Nd4 {[%emt 0:09:18]} 19. a4 {[%emt 0:07:54]} Bh6 {[%emt 0:05:48]} 20. Nf3 {[%emt 0:12:28]} Nxf3+ {[%emt 0:04:21]} 21. Qxf3 {[%emt 0:00:05]} Qxa4 {[%emt 0:00:11]} 22. Ra1 {[%emt 0:00:29]} Qd7 {[%emt 0:01:21]} 23. Re2 {[%emt 0:00:05]} Rb8 {[%emt 0:05:59]} 24. exf5 {[%emt 0:11:35]} Rxf5 {[%emt 0:13:42]} 25. Qe4 {[%emt 0:00:35]} Bg7 {[%emt 0:00:19]} 26. Rea2 {[%emt 0:00:48]} Rb7 {[%emt 0:00:50]} 27. h4 {[%emt 0:03:55]} Rf7 {[%emt 0:01:32]} 28. g3 {[%emt 0:02:06]} Qf5 {[%emt 0:08:49]} 29. Kg2 {[%emt 0:00:38]} Rbd7 {[%emt 0:02:31]} 30. Rb1 {[%emt 0:01:17]} Bf8 {[%emt 0:03:24]} 31. Rba1 {[%emt 0:01:18]} Bg7 {[%emt 0:00:07]} 32. Rb1 {[%emt 0:00:03]} Bf8 {[%emt 0:00:06]} 1/2-1/2

[Event "ROC Nova College 2019"]
[Site "Haarlem"]
[Date "2019.06.29"]
[Round "3.4"]
[White "Van Oosterom, Chiel"]
[Black "Merbis, Max"]
[Result "1-0"]
[ECO "A14"]
[WhiteElo "2397"]
[BlackElo "2103"]
[Annotator "RC"]
[PlyCount "105"]
[EventDate "2019.06.28"]
[EventType "swiss"]
[EventCountry "NED"]
[SourceTitle "playchess.com"]
[Source "ChessBase"]
[SourceQuality "1"]
[TimeControl "5400+15"]

1. c4 {[%emt 0:00:00]} e6 {[%emt 0:00:00]} 2. g3 {[%emt 0:00:00]} d5 {[%emt 0:00:01]} 3. Bg2 {[%emt 0:00:05]} Nf6 {[%emt 0:00:15]} 4. Nf3 {[%emt 0:00:10]} Be7 {[%emt 0:03:38]} 5. O-O {[%emt 0:00:12]} O-O {[%emt 0:00:16]} 6. b3 {[%emt 0:00:13]} b6 {[%emt 0:00:35]} 7. Bb2 {[%emt 0:00:10]} Bb7 {[%emt 0:00:08]} 8. e3 {[%emt 0:00:30]} c5 {[%emt 0:02:26]} 9. Nc3 {[%emt 0:00:46]} Nc6 {[%emt 0:03:59]} 10. cxd5 {[%emt 0:01:06]} Nxd5 {[%emt 0:04:32]} 11. Nxd5 {[%emt 0:01:49]} exd5 {[%emt 0:00:52]} 12. d4 {[%emt 0:01:07]} Re8 {[%emt 0:08:07]} 13. Qd2 {[%emt 0:04:17]} Bf6 {[%emt 0:11:09]} 14. dxc5 {[%emt 0:14:10]} Bxb2 {[%emt 0:01:13]} 15. Qxb2 {[%emt 0:00:06]} bxc5 {[%emt 0:00:03]} 16. Rfd1 {[%emt 0:00:22]} Qd6 {[%emt 0:09:47]} 17. Rac1 {[%emt 0:06:03]} Rac8 {[%emt 0:02:26]} 18. Ng5 {[%emt 0:11:46]} Nb4 {[%emt 0:08:31]} 19. a3 {[%emt 0:02:57]} Na6 {[%emt 0:01:17]} 20. Qb1 {[%emt 0:11:26]} g6 {[%emt 0:04:49]} 21. Bxd5 {[%emt 0:05:21]} Bxd5 {[%emt 0:00:18]} 22. e4 {[%emt 0:00:13]} h6 {[%emt 0:09:45]} 23. Rxd5 {[%emt 0:00:39]} Qe7 {[%emt 0:00:27]} 24. Nf3 {[%emt 0:02:04]} Qxe4 {[%emt 0:03:45]} 25. Qxe4 {[%emt 0:00:13]} Rxe4 {[%emt 0:00:01]} 26. Rd7 {[%emt 0:00:16]} Nb8 {[%emt 0:00:37]} 27. Rxa7 {[%emt 0:00:59]} Nc6 {[%emt 0:00:09]} 28. Rd7 {[%emt 0:04:54]} Rb8 {[%emt 0:04:21]} 29. Rxc5 {[%emt 0:04:03]} Rxb3 {[%emt 0:01:35]} 30. Nd2 {[%emt 0:00:07]} Re1+ {[%emt 0:00:18]} 31. Kg2 {[%emt 0:00:05]} Rb6 {[%emt 0:00:51]} 32. Nc4 {[%emt 0:00:08]} Ra6 {[%emt 0:01:48]} 33. h4 {[%emt 0:04:58]} Re6 {[%emt 0:01:09]} 34. h5 {[%emt 0:04:11]} gxh5 {[%emt 0:01:36]} 35. Rxh5 {[%emt 0:00:22]} Ra4 {[%emt 0:00:50]} 36. Rc5 {[%emt 0:00:20]} Kg7 {[%emt 0:01:04]} 37. Rb7 {[%emt 0:02:43]} Nd8 {[%emt 0:01:53]} 38. Rb8 {[%emt 0:01:38]} Rc6 {[%emt 0:00:42]} 39. Rb4 {[%emt 0:03:06]} Rca6 {[%emt 0:01:21]} 40. Rc8 {[%emt 0:00:51]} Ne6 {[%emt 0:00:34]} 41. Rbb8 {[%emt 0:00:42]} Kf6 {[%emt 0:00:54]} 42. Rb3 {[%emt 0:00:38]} Kg7 {[%emt 0:00:33]} 43. Rb4 {[%emt 0:00:51]} Ra7 {[%emt 0:00:44]} 44. Rbb8 {[%emt 0:00:25]} Kf6 {[%emt 0:00:12]} 45. Ne3 {[%emt 0:01:06]} Rd7 {[%emt 0:00:39]} 46. Rh8 {[%emt 0:00:16]} Rxa3 {[%emt 0:00:35]} 47. Ng4+ {[%emt 0:00:29]} Ke7 {[%emt 0:00:27]} 48. Rbe8+ {[%emt 0:00:18]} Kd6 {[%emt 0:00:04]} 49. Nxh6 {[%emt 0:00:06]} Ra2 {[%emt 0:00:26]} 50. Rh7 {[%emt 0:00:25]} Ng5 {[%emt 0:00:21]} 51. Rg7 {[%emt 0:00:05]} f6 {[%emt 0:00:05]} 52. Rg6 {[%emt 0:00:33]} Re7 {[%emt 0:00:25]} 53. Nf5+ {[%emt 0:00:04]} 1-0

[Event "ROC Nova College 2019"]
[Site "Haarlem"]
[Date "2019.06.30"]
[Round "5.1"]
[White "Van Oosterom, Chiel"]
[Black "Kevlishvili, Robby"]
[Result "1-0"]
[ECO "A28"]
[WhiteElo "2397"]
[BlackElo "2473"]
[Annotator "ChessBase"]
[PlyCount "91"]
[EventDate "2019.06.28"]
[EventType "swiss"]
[EventCountry "NED"]
[SourceTitle "playchess.com"]
[Source "ChessBase"]
[SourceQuality "1"]
[TimeControl "5400+15"]

1. c4 {[%emt 0:00:00]} e5 {[%emt 0:00:00]} 2. Nc3 {[%emt 0:00:00]} Nf6 {[%emt 0:00:00]} 3. Nf3 {[%emt 0:00:08]} Nc6 {[%emt 0:00:03]} 4. e4 {[%emt 0:00:12]} Bb4 {[%emt 0:00:25]} 5. d3 {[%emt 0:00:15]} d6 {[%emt 0:00:13]} 6. a3 {[%emt 0:00:22]} Bc5 {[%emt 0:00:24]} 7. b4 {[%emt 0:00:53]} Bb6 {[%emt 0:00:36]} 8. Na4 {[%emt 0:01:05]} Bd4 {[%emt 0:01:31]} 9. Nxd4 {[%emt 0:00:59]} Nxd4 {[%emt 0:00:38]} 10. Be2 {[%emt 0:03:36]} a5 {[%emt 0:00:44]} 11. b5 {[%emt 0:08:11]} Nd7 {[%emt 0:07:05]} 12. Be3 {[%emt 0:01:55]} Ne6 {[%emt 0:00:26]} 13. O-O {[%emt 0:01:06]} Ndc5 {[%emt 0:00:16]} 14. Nc3 {[%emt 0:01:08]} O-O {[%emt 0:02:08]} 15. Re1 {[%emt 0:07:56]} c6 {[%emt 0:03:14]} 16. Bf1 {[%emt 0:02:54]} a4 {[%emt 0:01:13]} 17. Rb1 {[%emt 0:08:12]} Qa5 {[%emt 1:15:19]} 18. Rb4 {[%emt 0:13:33]} Bd7 {[%emt 0:00:00]} 19. Qc1 {[%emt 0:02:06]} Nd4 {[%emt 0:00:00]} 20. Qb2 {[%emt 0:01:20]} Ndb3 {[%emt 0:00:00]} 21. Rd1 {[%emt 0:01:35]} Rfc8 {[%emt 0:00:00]} 22. d4 {[%emt 0:09:10]} exd4 {[%emt 0:00:00]} 23. Bxd4 {[%emt 0:00:07]} Nxd4 {[%emt 0:00:00]} 24. Rxd4 {[%emt 0:00:06]} Qc7 {[%emt 0:00:00]} 25. Rd1 {[%emt 0:06:10]} Re8 {[%emt 0:00:00]} 26. Qc2 {[%emt 0:01:11]} Re6 {[%emt 0:00:00]} 27. Nxa4 {[%emt 0:02:35]} Nxe4 {[%emt 0:00:00]} 28. c5 {[%emt 0:00:44]} Nxc5 {[%emt 0:00:00]} 29. b6 {[%emt 0:01:42]} Qc8 {[%emt 0:00:00]} 30. Nxc5 {[%emt 0:00:57]} dxc5 {[%emt 0:00:00]} 31. Qxc5 {[%emt 0:00:19]} Re8 {[%emt 0:00:00]} 32. a4 {[%emt 0:01:03]} Be6 {[%emt 0:00:00]} 33. a5 {[%emt 0:04:21]} Rd8 {[%emt 0:00:00]} 34. Rxd8+ {[%emt 0:03:37]} Qxd8 {[%emt 0:00:00]} 35. a6 {[%emt 0:00:27]} bxa6 {[%emt 0:00:00]} 36. b7 {[%emt 0:00:06]} Rb8 {[%emt 0:00:00]} 37. Bxa6 {[%emt 0:00:40]} Qc7 {[%emt 0:00:00]} 38. Rd4 {[%emt 0:01:31]} h6 {[%emt 0:00:00]} 39. Rd6 {[%emt 0:00:32]} Bd7 {[%emt 0:00:00]} 40. Qd4 {[%emt 0:00:12]} Be6 {[%emt 0:00:00]} 41. Qc5 {[%emt 0:00:26]} Bd7 {[%emt 0:00:00]} 42. Qd4 {[%emt 0:00:29]} Be6 {[%emt 0:00:00]} 43. h4 {[%emt 0:00:13]} Bd5 {[%emt 0:00:00]} 44. Qe5 {[%emt 0:00:19]} f6 {[%emt 0:00:00]} 45. Qg3 {[%emt 0:00:20]} Re8 {[%emt 0:00:00]} 46. Re6 {[%emt 0:00:24]} 1-0

[Event "ROC Nova College 2019"]
[Site "Haarlem"]
[Date "2019.06.30"]
[Round "5.3"]
[White "Admiraal, Miguoel"]
[Black "Jonkman, Harmen"]
[Result "1/2-1/2"]
[ECO "A10"]
[WhiteElo "2507"]
[BlackElo "2394"]
[Annotator "ChessBase"]
[PlyCount "53"]
[EventDate "2019.06.28"]
[EventType "swiss"]
[EventCountry "NED"]
[SourceTitle "playchess.com"]
[Source "ChessBase"]
[SourceQuality "1"]
[TimeControl "5400+15"]

1. c4 {[%emt 0:02:54]} b6 {[%emt 0:01:06]} 2. Nc3 {[%emt 0:02:16]} Bb7 {[%emt 0:00:11]} 3. e4 {[%emt 0:00:44]} e5 {[%emt 0:02:20]} 4. f4 {[%emt 0:00:54]} exf4 {[%emt 0:02:01]} 5. Nf3 {[%emt 0:12:17]} g5 {[%emt 0:01:54]} 6. h4 {[%emt 0:08:03]} g4 {[%emt 0:00:09]} 7. Ne5 {[%emt 0:00:31]} h5 {[%emt 0:00:43]} 8. d4 {[%emt 0:01:28]} Bg7 {[%emt 0:03:36]} 9. c5 {[%emt 0:09:20]} Nc6 {[%emt 0:26:06]} 10. Bxf4 {[%emt 0:15:22]} bxc5 {[%emt 0:05:20]} 11. Nxc6 {[%emt 0:02:33]} dxc6 {[%emt 0:12:14]} 12. dxc5 {[%emt 0:02:38]} Qe7 {[%emt 0:02:17]} 13. Bc4 {[%emt 0:13:13]} Qxc5 {[%emt 0:04:04]} 14. Qe2 {[%emt 0:02:11]} O-O-O {[%emt 0:01:45]} 15. Rc1 {[%emt 0:05:31]} Bh6 {[%emt 0:05:37]} 16. Rf1 {[%emt 0:02:21]} Bxf4 {[%emt 0:05:08]} 17. Rxf4 {[%emt 0:00:05]} Nh6 {[%emt 0:00:09]} 18. Nd1 {[%emt 0:07:41]} Kb8 {[%emt 0:01:57]} 19. Nf2 {[%emt 0:00:04]} g3 {[%emt 0:01:42]} 20. Nd3 {[%emt 0:00:13]} Qg1+ {[%emt 0:00:19]} 21. Rf1 {[%emt 0:00:03]} Qd4 {[%emt 0:01:20]} 22. Rc3 {[%emt 0:02:02]} Ng4 {[%emt 0:01:09]} 23. e5 {[%emt 0:01:16]} f6 {[%emt 0:09:34]} 24. Rf4 {[%emt 0:00:20]} Qg1+ {[%emt 0:00:19]} 25. Rf1 {[%emt 0:00:01]} Qd4 {[%emt 0:02:04]} 26. Rf4 {[%emt 0:00:01]} Qg1+ {[%emt 0:00:14]} 27. Rf1 {[%emt 0:00:02]} 1/2-1/2

[Event "ROC Nova College 2019"]
[Site "Haarlem"]
[Date "2019.06.30"]
[Round "5.4"]
[White "Boekelman, Jan"]
[Black "Arnaudov, G. Petar"]
[Result "0-1"]
[ECO "E06"]
[WhiteElo "2106"]
[BlackElo "2478"]
[Annotator "ChessBase"]
[PlyCount "50"]
[EventDate "2019.06.28"]
[EventType "swiss"]
[EventCountry "NED"]
[SourceTitle "playchess.com"]
[Source "ChessBase"]
[SourceQuality "1"]
[TimeControl "5400+15"]

1. d4 {[%emt 0:00:00]} Nf6 {[%emt 0:05:40]} 2. c4 {[%emt 0:00:00]} e6 {[%emt 0:02:03]} 3. Nf3 {[%emt 0:00:29]} d5 {[%emt 0:00:58]} 4. g3 {[%emt 0:00:24]} Be7 {[%emt 0:02:21]} 5. Bg2 {[%emt 0:00:15]} O-O {[%emt 0:00:07]} 6. O-O {[%emt 0:00:04]} c6 {[%emt 0:01:49]} 7. Nbd2 {[%emt 0:00:40]} b6 {[%emt 0:01:58]} 8. Qc2 {[%emt 0:00:50]} c5 {[%emt 0:00:16]} 9. e4 {[%emt 0:05:20]} Nc6 {[%emt 0:04:58]} 10. exd5 {[%emt 0:10:44]} exd5 {[%emt 0:00:37]} 11. dxc5 {[%emt 0:00:56]} bxc5 {[%emt 0:00:57]} 12. cxd5 {[%emt 0:12:09]} Nb4 {[%emt 0:01:46]} 13. Qb3 {[%emt 0:03:54]} Bf5 {[%emt 0:12:52]} 14. Nh4 {[%emt 0:09:31]} Bc2 {[%emt 0:03:42]} 15. Qc3 {[%emt 0:02:03]} Nfxd5 {[%emt 0:07:48]} 16. Bxd5 {[%emt 0:00:31]} Qxd5 {[%emt 0:00:10]} 17. a3 {[%emt 0:00:51]} Bf6 {[%emt 0:01:47]} 18. Qf3 {[%emt 0:03:06]} Qxf3 {[%emt 0:00:34]} 19. Ndxf3 {[%emt 0:02:39]} Nd3 {[%emt 0:01:37]} 20. Ne1 {[%emt 0:00:55]} Nxe1 {[%emt 0:03:18]} 21. Rxe1 {[%emt 0:00:46]} c4 {[%emt 0:00:14]} 22. Ng2 {[%emt 0:11:34]} c3 {[%emt 0:02:51]} 23. b4 {[%emt 0:00:26]} Ba4 {[%emt 0:00:35]} 24. Bf4 {[%emt 0:03:15]} Rfe8 {[%emt 0:01:29]} 25. Ra2 {[%emt 0:06:11]} c2 {[%emt 0:00:54]} 0-1